bitfinex/quotes_BTCUSD_20220303
["timestamp","ask_amount","ask_price","bid_price","bid_amount"]
[1646324508726,0.18886617,42647.0,42642.0,0.28468519]
[1646324508928,0.01438456,42646.0,42642.0,0.28468519]
[1646324509132,0.09649256,42646.0,42642.0,0.28468519]
[1646324509327,0.01420405,42644.0,42642.0,0.28468519]
[1646324509528,0.01318464,42643.0,42642.0,0.27618519]
[1646324509727,0.05874206,42646.0,42642.0,0.27618519]
[1646324509928,0.21167014,42632.0,42630.0,0.01687004]
[1646324510130,0.117314,42632.0,42630.0,0.01687004]
[1646324510327,0.117314,42632.0,42624.0,0.117314]
[1646324510827,0.17891747,42630.0,42624.0,0.117314]
[1646324511025,0.02347,42629.0,42624.0,0.117314]
[1646324511321,0.17891747,42630.0,42628.0,0.01467613]
[1646324511521,0.17891747,42630.0,42628.0,0.07333413]
[1646324511725,0.17891747,42630.0,42628.0,0.01467613]
[1646324512123,0.117314,42632.0,42628.0,0.01467613]
[1646324513025,0.117314,42632.0,42625.0,0.33370862]
[1646324513026,0.02347,42631.0,42625.0,0.33370862]
[1646324513222,0.02347,42631.0,42626.0,0.01369074]
[1646324513223,0.19318915,42631.0,42626.0,0.01369074]
[1646324513427,0.117314,42632.0,42629.0,0.15]
[1646324513624,0.058656,42632.0,42630.0,0.0433]
[1646324513822,0.058656,42632.0,42631.0,0.01530484]
[1646324514435,0.058656,42632.0,42631.0,0.01303984]
[1646324515038,0.117293,42636.0,42631.0,0.01303984]
[1646324515236,0.058645,42636.0,42635.0,0.01303984]
[1646324515837,0.058645,42636.0,42635.0,0.16303984]
[1646324516239,0.058645,42636.0,42635.0,0.17003984]
[1646324516843,0.0001733,42636.0,42635.0,0.17003984]
[1646324517139,0.0001733,42636.0,42635.0,0.21333984]
[1646324517337,0.0001733,42636.0,42635.0,1.02103984]
[1646324517539,0.0001733,42636.0,42635.0,1.01403984]
[1646324517990,0.0001733,42636.0,42635.0,1.31403984]
[1646324518291,0.0001733,42636.0,42635.0,1.01403984]
[1646324518492,0.0001733,42636.0,42635.0,0.91403984]
[1646324518791,0.0001733,42636.0,42635.0,1.2382321]
[1646324519191,0.0001733,42636.0,42635.0,1.29751919]
[1646324519496,0.0001733,42636.0,42635.0,0.2003]
[1646324519692,0.0001733,42636.0,42635.0,0.007]
[1646324520092,0.0001733,42636.0,42635.0,0.00086775]
[1646324521726,0.18116952,42640.0,42635.0,0.00086775]
[1646324521927,0.18116952,42640.0,42639.0,0.00086782]
[1646324523128,0.36734474,42640.0,42639.0,0.00086782]
[1646324523329,0.38234474,42640.0,42639.0,0.00086782]
[1646324523728,0.19616952,42640.0,42639.0,0.00086782]
[1646324524132,0.015,42640.0,42639.0,0.02103984]
[1646324524628,0.015,42640.0,42639.0,0.03490621]
[1646324525031,0.015,42640.0,42639.0,0.07820621]
[1646324525230,0.00010034,42644.0,42642.0,0.02999999]
[1646324525480,0.00010034,42644.0,42643.0,0.058638]
[1646324525984,0.234553,42646.0,42644.0,0.01540559]
[1646324526183,0.18730647,42645.0,42644.0,0.01540559]
[1646324526486,0.11737545,42646.0,42644.0,0.02844543]
[1646324526683,0.11737545,42646.0,42645.0,0.18857138]
[1646324527083,0.117271,42646.0,42645.0,0.18857138]
[1646324527685,0.117271,42646.0,42645.0,0.23187138]
[1646324528084,0.102271,42646.0,42645.0,0.23787138]
[1646324528684,0.102271,42646.0,42632.0,0.40520748]
[1646324528885,0.46777336,42645.0,42632.0,0.19388181]
[1646324529088,0.46777336,42645.0,42623.0,0.28164569]
[1646324529089,0.082106,42644.0,42629.0,0.18450281]
[1646324529354,0.082106,42644.0,42623.0,0.28164569]
[1646324529355,0.15,42637.0,42623.0,0.19392395]
[1646324529554,0.117359,42628.0,42614.0,0.25317395]
[1646324529750,0.117359,42628.0,42618.0,0.18899712]
[1646324529751,0.0433,42627.0,42618.0,0.18899712]
[1646324529951,0.19237996,42622.0,42618.0,0.18899712]
[1646324530154,0.21584996,42622.0,42618.0,0.19392395]
[1646324530351,0.21584996,42622.0,42620.0,0.19651669]
[1646324530352,0.25105696,42622.0,42620.0,0.19651669]
[1646324530550,0.25105696,42622.0,42618.0,0.06606478]
[1646324530850,0.25105696,42622.0,42618.0,0.3642132]
[1646324531051,0.117354,42623.0,42621.0,0.14]
[1646324531353,0.457108,42636.0,42622.0,0.75399564]
[1646324531551,0.176008,42636.0,42628.0,0.058646]
[1646324531749,0.476008,42636.0,42628.0,0.058646]
[1646324531950,0.2043598,42635.0,42628.0,0.058646]
[1646324532151,0.01550765,42635.0,42628.0,0.058646]
[1646324532349,0.01550765,42635.0,42628.0,0.083646]
[1646324532552,0.176008,42636.0,42628.0,0.083646]
[1646324532753,0.01086461,42634.0,42628.0,0.083646]
[1646324532998,0.117301,42635.0,42630.0,0.2075807]
[1646324533398,0.140771,42635.0,42630.0,0.2075807]
[1646324533598,0.01460958,42634.0,42630.0,0.2075807]
[1646324533799,0.13158068,42635.0,42630.0,0.2075807]
[1646324534003,0.117301,42635.0,42630.0,0.2075807]
[1646324534199,0.117301,42635.0,42630.0,0.2125807]
[1646324534398,0.117301,42635.0,42630.0,0.5125807]
[1646324534699,0.01190855,42634.0,42632.0,0.25264833]
[1646324534900,0.05865,42635.0,42633.0,0.0433]
[1646324535099,0.05865,42635.0,42634.0,0.09566685]
[1646324535404,0.05863,42638.0,42634.0,0.27486156]
[1646324535603,0.05863,42638.0,42637.0,0.03756023]
[1646324535800,0.05863,42638.0,42637.0,0.07592042]
[1646324536399,0.05863,42638.0,42637.0,0.36975279]
[1646324536601,0.058626,42645.0,42637.0,1.3520072]
[1646324536839,0.058626,42645.0,42642.0,0.7077]
[1646324537049,0.00010033,42644.0,42643.0,0.0433]
[1646324537238,0.00010033,42644.0,42643.0,0.0872356]
[1646324537438,0.00010033,42644.0,42643.0,0.28141978]
[1646324537838,0.058626,42645.0,42644.0,0.01237423]
[1646324538041,0.058626,42645.0,42644.0,0.1833]
[1646324538437,0.058626,42645.0,42644.0,0.0433]
[1646324538840,0.058626,42645.0,42644.0,0.09198729]
[1646324539038,0.17732966,42652.0,42644.0,0.45559895]
[1646324539039,0.176912,42652.0,42644.0,0.45559895]
[1646324539247,0.176912,42652.0,42647.0,0.2499]
[1646324539248,0.001,42652.0,42647.0,0.2499]
[1646324539442,0.001,42652.0,42648.0,0.3433]
[1646324539640,0.001,42652.0,42651.0,0.03600563]
[1646324539842,0.001,42652.0,42651.0,0.23783861]
[1646324540038,0.001,42652.0,42651.0,0.42872]
[1646324540039,0.059621,42652.0,42651.0,0.42872]
[1646324540239,0.059621,42652.0,42651.0,0.63203265]
[1646324540505,0.059621,42652.0,42651.0,0.44926265]
[1646324540709,0.001,42652.0,42651.0,0.33203265]
[1646324540909,0.00010443,42654.0,42652.0,1.7077]
[1646324541108,0.00010443,42654.0,42653.0,0.651815]
[1646324541307,0.06002766,42660.0,42655.0,1.0]
[1646324541506,0.05,42664.0,42659.0,0.14]
[1646324541708,0.05,42664.0,42656.0,2.37866812]
[1646324541709,1.175855,42666.0,42660.0,0.0433]
[1646324541909,1.175855,42666.0,42664.0,0.14]
[1646324542107,1.18800432,42666.0,42664.0,0.1833]
[1646324542307,0.225818,42674.0,42665.0,1.0]
[1646324542308,0.0122685,42671.0,42665.0,1.0]
[1646324542510,0.225818,42674.0,42669.0,0.09559625]
[1646324542511,0.05,42674.0,42669.0,0.09559625]
[1646324542708,0.2201538,42675.0,42670.0,0.0433]
[1646324542908,0.01122004,42674.0,42666.0,0.1]
[1646324543108,0.01122004,42674.0,42667.0,0.0433]
[1646324543317,0.001,42681.0,42672.0,1.0]
[1646324543511,0.001,42681.0,42674.0,0.896367]
[1646324543710,0.001,42681.0,42675.0,0.1433]
[1646324543908,0.001,42681.0,42675.0,0.22848]
[1646324544339,0.001,42681.0,42679.0,0.09559289]
[1646324544539,0.001,42681.0,42680.0,0.0433]
[1646324544740,0.001,42681.0,42680.0,0.08583625]
[1646324545542,0.001,42681.0,42680.0,0.0433]
[1646324546242,0.001,42681.0,42680.0,0.0473]
[1646324546742,0.001,42682.0,42681.0,1.0]
[1646324546942,0.00194398,42683.0,42681.0,1.38877833]
[1646324547142,0.00194398,42683.0,42682.0,0.09557833]
[1646324547444,0.00194398,42685.0,42682.0,0.0433]
[1646324547741,0.19923633,42683.0,42682.0,0.0433]
[1646324547985,0.00194398,42685.0,42682.0,0.0433]
[1646324548192,0.00194398,42685.0,42683.0,0.0135673]
[1646324548589,0.00194398,42685.0,42684.0,0.0433]
[1646324548786,0.00194398,42685.0,42684.0,0.13886602]
[1646324548986,0.16188825,42685.0,42684.0,0.069323]
[1646324549190,0.16188825,42685.0,42684.0,0.0433]
[1646324549787,0.15188825,42685.0,42684.0,0.0433]
[1646324550187,0.15188825,42685.0,42667.0,0.01171]
[1646324550188,1.0,42684.0,42667.0,0.01171]
[1646324550392,1.0,42684.0,42667.0,0.16012014]
[1646324550393,1.01171,42684.0,42667.0,0.16012014]
[1646324550590,0.02347,42677.0,42667.0,0.16012014]
[1646324551186,0.05861,42674.0,42667.0,0.16012014]
[1646324551389,0.11722,42674.0,42667.0,0.16012014]
[1646324551586,0.02347,42673.0,42667.0,0.16012014]
[1646324551834,0.1,42679.0,42677.0,0.14303261]
[1646324552229,0.00039923,42681.0,42677.0,0.14303261]
[1646324552432,0.01171,42683.0,42677.0,0.14303261]
[1646324552433,0.117206,42679.0,42677.0,0.14303261]
[1646324553232,0.058603,42679.0,42677.0,0.14303261]
[1646324553633,0.117195,42679.0,42677.0,0.14303261]
[1646324554231,0.058603,42679.0,42677.0,0.14303261]
[1646324554635,0.058603,42679.0,42678.0,0.0433]
[1646324554833,0.058584,42683.0,42678.0,0.0433]
[1646324555132,0.058584,42683.0,42682.0,0.04507808]
[1646324556193,0.058584,42683.0,42682.0,0.05007808]
[1646324556391,0.058584,42683.0,42682.0,0.005]
[1646324556591,0.058584,42683.0,42682.0,0.145]
[1646324556792,0.053584,42683.0,42682.0,0.005]
[1646324558092,0.053584,42683.0,42681.0,0.17728624]
[1646324558798,0.023584,42683.0,42679.0,0.01254772]
[1646324559841,0.20466956,42682.0,42679.0,0.01254772]
[1646324560042,0.023584,42683.0,42679.0,0.01254772]
[1646324560247,0.023584,42683.0,42679.0,0.01654772]
[1646324561040,0.023584,42683.0,42681.0,0.21746573]
[1646324561545,0.023584,42683.0,42681.0,0.26076573]
[1646324561741,0.023584,42683.0,42682.0,0.01229698]
[1646324562041,0.023584,42683.0,42682.0,0.05992886]
[1646324562243,0.023584,42683.0,42682.0,0.01229698]
[1646324562640,0.013584,42683.0,42682.0,0.01229698]
[1646324562840,0.013584,42683.0,42682.0,0.0433]
[1646324564403,0.013584,42683.0,42682.0,0.3433]
[1646324564604,0.11828082,42687.0,42683.0,0.21432303]
[1646324564605,0.00111082,42687.0,42683.0,0.21432303]
[1646324564802,0.00111082,42687.0,42686.0,0.03490033]
[1646324565002,0.00111082,42687.0,42686.0,0.37820033]
[1646324565604,0.00111082,42687.0,42686.0,0.43677133]
[1646324565803,0.00111082,42687.0,42686.0,0.45014589]
[1646324566005,0.00111082,42687.0,42686.0,0.42997865]
[1646324566203,0.00111082,42687.0,42686.0,0.12997865]
[1646324566402,0.00111082,42687.0,42686.0,0.42997865]
[1646324566846,0.00111082,42687.0,42686.0,0.101871]
[1646324567245,0.00111082,42687.0,42686.0,0.13880957]
[1646324567641,0.00111082,42687.0,42686.0,0.84650957]
[1646324567842,0.00111082,42687.0,42686.0,0.13784879]
[1646324568442,0.00111082,42687.0,42686.0,0.38774879]
[1646324568842,0.00111082,42687.0,42686.0,1.09544879]
[1646324569043,0.00111082,42687.0,42686.0,0.0433]
[1646324569248,0.17687082,42687.0,42683.0,0.040752]
[1646324569445,0.3,42686.0,42683.0,0.040752]
[1646324569643,0.17687082,42687.0,42683.0,0.040752]
[1646324570491,0.17687082,42687.0,42678.0,0.006]
[1646324570492,0.175762,42686.0,42678.0,0.006]
[1646324570692,0.16055534,42683.0,42678.0,0.006]
[1646324570889,0.110172,42682.0,42680.0,0.058584]
[1646324571097,0.110172,42682.0,42678.0,0.19987126]
[1646324571290,0.11062278,42682.0,42678.0,0.19987126]
[1646324571492,0.11062278,42682.0,42677.0,0.26020161]
[1646324571892,0.11999478,42682.0,42677.0,0.26020161]
[1646324572290,0.11062278,42682.0,42677.0,0.26020161]
[1646324572490,0.17043123,42681.0,42677.0,0.14303261]
[1646324572893,0.17043123,42681.0,42678.0,0.058588]
[1646324573494,0.17043123,42681.0,42680.0,0.14]
[1646324573695,0.11062278,42682.0,42680.0,0.14]
[1646324573995,0.11062278,42682.0,42678.0,0.058589]
[1646324574237,0.11062278,42682.0,42680.0,0.006]
[1646324575439,0.11062278,42682.0,42679.0,0.058588]
[1646324575840,0.11999478,42682.0,42679.0,0.058588]
[1646324576040,0.19985725,42680.0,42679.0,0.058588]
[1646324576242,0.19985725,42680.0,42673.0,0.16525108]
[1646324576243,0.45,42677.0,42667.0,0.01171]
[1646324576442,0.15,42673.0,42656.0,0.02447302]
[1646324576643,0.01449553,42671.0,42659.0,0.01680892]
[1646324576842,0.01449553,42671.0,42651.0,0.795]
[1646324576843,0.03461333,42670.0,42652.0,0.23467105]
[1646324577044,0.18427866,42659.0,42653.0,0.01319956]
[1646324577246,0.3,42657.0,42650.0,0.16214952]
[1646324577443,0.01572767,42656.0,42647.0,0.4494]
[1646324577642,0.07084733,42655.0,42647.0,0.4494]
[1646324577844,0.2,42647.0,42641.0,0.17607551]
[1646324578103,0.02347,42652.0,42626.0,0.117304]
[1646324578104,0.01346123,42645.0,42626.0,0.117304]
[1646324578303,0.3,42650.0,42632.0,0.2499]
[1646324578503,0.01195442,42650.0,42632.0,0.2499]
[1646324578703,0.01466104,42650.0,42626.0,0.0683]
[1646324579004,0.01593525,42639.0,42633.0,0.058648]
[1646324579203,0.117302,42642.0,42641.0,0.07328068]
[1646324579403,0.058636,42642.0,42641.0,0.21328068]
[1646324579604,0.01470235,42646.0,42642.0,0.17211015]
[1646324579807,0.0144404,42644.0,42643.0,0.0433]
[1646324580002,0.058623,42646.0,42643.0,0.0433]
[1646324580202,0.01293928,42644.0,42643.0,0.160549]
[1646324580402,0.058623,42646.0,42643.0,0.160549]
[1646324580606,0.05863,42645.0,42643.0,0.260549]
[1646324580806,0.05863,42645.0,42644.0,0.0354279]
[1646324581009,0.05863,42645.0,42644.0,0.0787279]
[1646324581849,0.12675323,42655.0,42651.0,0.19632307]
[1646324582049,0.12675323,42655.0,42649.0,0.0433]
[1646324582450,0.12675323,42655.0,42649.0,0.09987507]
[1646324582451,0.058625,42654.0,42649.0,0.09987507]
[1646324582649,0.117255,42652.0,42649.0,0.09987507]
[1646324582848,0.117255,42652.0,42649.0,0.24290364]
[1646324583747,0.117255,42652.0,42649.0,0.0433]
[1646324583953,0.117255,42652.0,42643.0,0.2499]
[1646324583954,0.175932,42650.0,42643.0,0.2499]
[1646324584149,0.058641,42648.0,42643.0,0.2499]
[1646324584348,0.058641,42648.0,42644.0,0.006]
[1646324584749,0.20332203,42653.0,42644.0,0.006]
[1646324584957,0.20332203,42653.0,42641.0,0.07328068]
[1646324584958,0.16791875,42653.0,42641.0,0.07328068]
[1646324585150,0.058638,42647.0,42641.0,0.07328068]
[1646324585791,0.19457042,42642.0,42641.0,0.07328068]
[1646324585989,0.19457042,42642.0,42634.0,0.29082276]
[1646324585990,0.49457042,42642.0,42634.0,0.29082276]
[1646324586288,0.49457042,42642.0,42641.0,0.005]
[1646324586487,0.49457042,42642.0,42631.0,0.29082276]
[1646324586788,0.49457042,42642.0,42633.0,0.2499]
[1646324586987,0.67053342,42642.0,42633.0,0.2499]
[1646324587188,0.67053342,42642.0,42633.0,0.49228786]
[1646324587389,0.37053342,42642.0,42635.0,0.19390983]
[1646324588189,0.37053342,42642.0,42633.0,0.2499]
[1646324589242,0.175963,42642.0,42633.0,0.2499]
[1646324589642,0.175963,42642.0,42638.0,0.16475378]
[1646324590044,0.175963,42642.0,42641.0,0.07331679]
[1646324590248,0.175963,42642.0,42641.0,0.11661679]
[1646324590441,0.175963,42642.0,42641.0,0.0433]
[1646324590643,0.175963,42642.0,42641.0,0.26066278]
[1646324591246,0.175963,42642.0,42641.0,0.35633861]
[1646324591445,0.175963,42642.0,42641.0,0.35630272]
[1646324591645,0.175963,42642.0,42641.0,0.52470843]
[1646324591844,0.058652,42643.0,42641.0,0.52470843]
[1646324592044,0.058652,42643.0,42642.0,0.09564331]
[1646324592245,0.058652,42643.0,42642.0,0.13894331]
[1646324594388,0.058652,42643.0,42632.0,0.19390983]
[1646324594389,0.11731,42642.0,42632.0,0.19390983]
[1646324594587,0.058654,42639.0,42629.0,0.53256133]
[1646324594788,0.058654,42639.0,42633.0,0.2499]
[1646324594991,0.058654,42639.0,42634.0,0.05865]
[1646324594992,0.15536355,42638.0,42634.0,0.05865]
[1646324595189,0.17970487,42637.0,42634.0,0.05865]
[1646324595395,0.17970487,42637.0,42629.0,0.117298]
[1646324595989,0.29702287,42637.0,42629.0,0.117298]
[1646324597248,0.058659,42636.0,42625.0,0.2749]
[1646324597449,0.117336,42633.0,42625.0,0.2749]
[1646324597650,0.117336,42633.0,42623.0,0.25815319]
[1646324598050,0.11701833,42633.0,42621.0,0.117321]
[1646324598248,0.1596758,42629.0,42622.0,0.17648157]
[1646324598447,0.1596758,42629.0,42622.0,0.015]
[1646324598648,0.15734545,42625.0,42622.0,0.015]
[1646324598847,0.117342,42626.0,42625.0,0.15044207]
[1646324599052,0.12810974,42626.0,42625.0,0.15044207]
[1646324599246,0.12810974,42626.0,42622.0,0.015]
[1646324599448,0.117342,42626.0,42622.0,0.015]
[1646324600049,0.176018,42626.0,42622.0,0.015]
[1646324600494,0.05867,42625.0,42623.0,0.17370267]
[1646324600697,0.01503268,42624.0,42623.0,0.17370267]
[1646324600897,0.117316,42632.0,42623.0,0.17370267]
[1646324601095,0.058654,42631.0,42624.0,0.0433]
[1646324601298,0.058654,42631.0,42630.0,0.32630736]
[1646324601696,0.058654,42631.0,42630.0,0.17170787]
[1646324601895,0.058654,42631.0,42630.0,0.21606456]
[1646324602098,0.058654,42631.0,42630.0,0.04435669]
[1646324602496,0.058654,42631.0,42630.0,0.07036347]
[1646324602697,0.05,42642.0,42630.0,0.07036347]
[1646324602698,0.058644,42639.0,42630.0,0.07036347]
[1646324602899,0.117288,42643.0,42634.0,0.2499]
[1646324603096,0.117288,42643.0,42635.0,0.0433]
[1646324603698,0.117284,42643.0,42635.0,0.0433]
[1646324603897,0.12935781,42643.0,42635.0,0.0433]
[1646324604098,0.117284,42643.0,42635.0,0.0433]
[1646324604340,0.117284,42643.0,42635.0,0.19877362]
[1646324604542,0.31170372,42642.0,42632.0,0.117281]
[1646324604742,0.31170372,42642.0,42621.0,0.67270983]
[1646324604743,0.3166768,42636.0,42622.0,0.16855497]
[1646324604940,0.01330668,42634.0,42622.0,0.16855497]
[1646324605144,0.1993328,42636.0,42622.0,0.16855497]
[1646324605341,0.0143007,42632.0,42622.0,0.16855497]
[1646324605543,0.1993328,42636.0,42632.0,0.01479399]
[1646324605743,0.01255319,42635.0,42632.0,0.01479399]
[1646324605942,0.3753268,42636.0,42632.0,0.01479399]
[1646324606140,0.01271763,42633.0,42632.0,0.01479399]
[1646324606341,0.11733,42634.0,42632.0,0.01479399]
[1646324606540,0.058665,42631.0,42623.0,0.298665]
[1646324606741,0.22071702,42631.0,42622.0,0.16855497]
[1646324607743,0.01005478,42629.0,42623.0,0.058665]
[1646324608388,0.058664,42628.0,42623.0,0.058665]
[1646324608991,0.058664,42628.0,42623.0,0.25536455]
[1646324609191,0.058664,42628.0,42623.0,0.058665]
[1646324609391,0.2512986,42626.0,42623.0,0.058665]
[1646324609593,0.2512986,42626.0,42620.0,0.4494]
[1646324609594,0.01288313,42625.0,42620.0,0.4494]
[1646324610590,0.38102103,42626.0,42620.0,0.4494]
[1646324610791,0.01396366,42625.0,42620.0,0.4494]
[1646324611095,0.3686466,42626.0,42620.0,0.4494]
[1646324611096,0.01460791,42623.0,42620.0,0.4494]
[1646324611293,0.03001447,42622.0,42620.0,0.4494]
[1646324611493,0.01196806,42621.0,42620.0,0.097285]
[1646324611743,0.01196806,42621.0,42619.0,0.015]
[1646324611949,0.16954024,42621.0,42619.0,0.015]
[1646324612144,0.0867238,42624.0,42619.0,0.015]
[1646324612145,0.1015727,42624.0,42619.0,0.015]
[1646324612344,0.1015727,42624.0,42619.0,0.17171903]
[1646324612543,0.1015727,42624.0,42619.0,0.015]
[1646324612544,0.0867238,42624.0,42619.0,0.015]
[1646324613143,0.058686,42622.0,42619.0,0.015]
[1646324613545,0.058686,42622.0,42621.0,0.15554723]
[1646324613945,0.058686,42622.0,42620.0,0.2499]
[1646324614145,0.058686,42622.0,42615.0,0.05503]
[1646324614345,0.058673,42620.0,42615.0,0.2932]
[1646324614547,0.058673,42620.0,42619.0,0.04435669]
[1646324615247,0.058673,42620.0,42619.0,0.0356615]
[1646324618501,0.058686,42622.0,42620.0,0.08522746]
[1646324618702,0.61763189,42635.0,42621.0,0.31832922]
[1646324618703,0.6028,42635.0,42621.0,0.31832922]
[1646324618905,0.7307,42636.0,42629.0,0.1563884]
[1646324619102,0.01171,42641.0,42630.0,0.0433]
[1646324619337,0.21366456,42634.0,42631.0,0.0433]
[1646324619540,0.21366456,42634.0,42632.0,0.0433]
[1646324619737,0.21366456,42634.0,42633.0,0.0433]
[1646324620537,0.21366456,42634.0,42633.0,0.05720365]
[1646324620738,0.21366456,42634.0,42633.0,0.0433]
[1646324621542,0.22876716,42634.0,42633.0,0.0433]
[1646324621939,0.0151026,42634.0,42633.0,0.0433]
[1646324622345,0.015,42643.0,42633.0,0.0433]
[1646324622543,0.01077835,42642.0,42640.0,0.19601995]
[1646324622745,0.01077835,42642.0,42633.0,0.0433]
[1646324622746,0.01077835,42642.0,42641.0,0.05720365]
[1646324624244,0.058635,42652.0,42641.0,0.05720365]
[1646324624447,0.60016934,42656.0,42647.0,0.18158844]
[1646324624745,0.60016934,42656.0,42648.0,0.0433]
[1646324624943,0.13126934,42656.0,42648.0,0.0433]
[1646324625144,0.3,42655.0,42648.0,0.0433]
[1646324625345,0.18593039,42649.0,42648.0,0.160549]
[1646324625644,0.058635,42650.0,42648.0,0.160549]
[1646324626343,0.058635,42650.0,42648.0,0.15715079]
[1646324626750,0.058635,42650.0,42648.0,0.40705079]
[1646324626950,0.11727,42652.0,42650.0,0.02266018]
[1646324627149,0.11727,42652.0,42651.0,0.0433]
[1646324628853,0.11727,42652.0,42651.0,0.05720365]
[1646324629056,0.058632,42653.0,42651.0,0.05720365]
[1646324629057,0.058632,42653.0,42651.0,0.11582765]
[1646324629256,0.058632,42653.0,42652.0,0.01390365]
[1646324629458,0.015,42659.0,42652.0,0.5534042]
[1646324629654,0.015,42659.0,42656.0,0.01390365]
[1646324629858,0.015,42659.0,42658.0,0.01390365]
[1646324630055,0.015,42659.0,42658.0,0.17441765]
[1646324630256,0.015,42659.0,42658.0,0.27441765]
[1646324630490,0.015,42659.0,42658.0,0.52431765]
[1646324632194,0.01,42659.0,42658.0,0.52431765]
[1646324632394,0.01,42659.0,42658.0,0.42931765]
[1646324633696,0.01,42659.0,42658.0,0.42431765]
[1646324633897,0.01186833,42659.0,42658.0,0.42431765]
[1646324634257,0.00186833,42659.0,42658.0,0.42431765]
[1646324634446,0.00186833,42659.0,42658.0,0.42931765]
[1646324635850,0.02747833,42660.0,42659.0,1.0]
[1646324636051,0.02747833,42660.0,42659.0,1.05720365]
[1646324636752,0.02247833,42660.0,42659.0,1.05713365]
[1646324637549,0.002,42663.0,42659.0,1.15713365]
[1646324637749,0.002,42663.0,42662.0,0.01390365]
[1646324637998,0.002,42663.0,42662.0,0.05720365]
[1646324640501,0.002,42663.0,42662.0,0.06220365]
[1646324640903,0.002,42663.0,42662.0,0.36220365]
[1646324641604,0.002,42663.0,42662.0,0.35720365]
[1646324641850,0.06795001,42676.0,42670.0,0.1950031]
[1646324642049,0.059605,42676.0,42671.0,0.0433]
[1646324642251,0.001,42676.0,42675.0,0.0747107]
[1646324642447,0.001,42676.0,42675.0,0.43191435]
[1646324642649,0.001,42676.0,42675.0,0.05720365]
[1646324644347,0.001,42676.0,42675.0,0.0433]
[1646324644555,0.001,42676.0,42675.0,0.0473]
[1646324645149,0.15694823,42676.0,42675.0,0.0473]
[1646324645807,0.15694823,42676.0,42675.0,0.0433]
[1646324646207,0.12240555,42677.0,42675.0,0.0433]
[1646324646508,0.16250288,42676.0,42675.0,0.0433]
[1646324646910,0.117228,42675.0,42670.0,0.004]
[1646324647112,0.01470163,42674.0,42670.0,0.004]
[1646324647310,0.07331163,42674.0,42670.0,0.004]
[1646324647512,0.01173338,42672.0,42670.0,0.004]
[1646324647911,0.058609,42672.0,42668.0,0.2932]
[1646324648411,0.058609,42672.0,42670.0,0.005]
[1646324649246,0.058609,42672.0,42662.0,0.117218]
[1646324649247,0.208609,42672.0,42662.0,0.05261002]
[1646324649444,0.15,42667.0,42650.0,0.02266018]
[1646324649648,0.208625,42667.0,42650.0,0.02266018]
[1646324649842,0.01099802,42665.0,42650.0,0.02266018]
[1646324650043,0.06412549,42665.0,42651.0,0.2186543]
[1646324650242,0.06412549,42665.0,42650.0,0.02266018]
[1646324650243,0.18806079,42656.0,42650.0,0.02266018]
[1646324650442,0.417277,42655.0,42650.0,0.008]
[1646324650645,0.01384647,42652.0,42650.0,0.008]
[1646324651043,0.18206309,42645.0,42639.0,2.18076765]
[1646324651242,0.4,42654.0,42650.0,0.23474549]
[1646324651444,0.053641,42648.0,42639.0,2.18076765]
[1646324651644,0.11228,42648.0,42645.0,0.20202897]
[1646324652247,0.28775786,42648.0,42645.0,0.20202897]
[1646324652442,0.11228,42648.0,42645.0,0.20202897]
[1646324652742,0.11228,42648.0,42647.0,0.01390365]
[1646324653003,0.058639,42648.0,42647.0,0.01390365]
[1646324654506,0.21970225,42648.0,42643.0,0.2499]
[1646324655108,0.058639,42648.0,42643.0,0.2499]
[1646324655309,0.058639,42648.0,42635.0,0.058649]
[1646324655508,0.21017191,42645.0,42637.0,0.15565216]
[1646324655708,0.058646,42644.0,42637.0,0.10565216]
[1646324655906,0.058646,42644.0,42638.0,0.117278]
[1646324656207,0.20930156,42643.0,42638.0,0.117278]
[1646324657034,0.058646,42644.0,42638.0,0.117278]
[1646324657235,0.058646,42644.0,42640.0,0.17474567]
[1646324657635,0.058646,42644.0,42639.0,0.117277]
[1646324657935,0.068026,42644.0,42639.0,0.117277]
[1646324658136,0.058649,42643.0,42637.0,0.10565216]
[1646324658736,0.058646,42644.0,42637.0,0.10565216]
[1646324658936,0.058646,42644.0,42641.0,0.01390365]
[1646324659136,0.058646,42644.0,42642.0,0.0433]
[1646324659339,0.058646,42644.0,42643.0,0.0433]
[1646324659939,0.058646,42644.0,42643.0,0.05720365]
[1646324660598,0.058625,42647.0,42643.0,0.48067365]
[1646324660790,0.058625,42647.0,42646.0,0.01390365]
[1646324660990,0.058625,42647.0,42646.0,0.05720365]
[1646324662086,0.06425805,42650.0,42646.0,0.05720365]
[1646324662287,0.06425805,42650.0,42645.0,0.2499]
[1646324662493,0.05243366,42650.0,42645.0,0.2932]
[1646324662687,0.058625,42647.0,42645.0,0.2932]
[1646324662890,0.058625,42647.0,42640.0,0.2499]
[1646324662891,0.20863327,42646.0,42640.0,0.2499]
[1646324663089,0.19652379,42646.0,42640.0,0.2499]
[1646324663288,0.11729,42643.0,42640.0,0.2499]
[1646324663489,0.13029735,42643.0,42640.0,0.2499]
[1646324663889,0.0111138,42642.0,42637.0,0.117281]
[1646324664335,0.0111138,42642.0,42641.0,0.01390365]
[1646324665535,0.11729,42643.0,42641.0,0.01390365]
[1646324665736,0.11729,42643.0,42642.0,0.01390365]
[1646324665936,0.11729,42643.0,42642.0,0.0433]
[1646324666138,0.11729,42643.0,42642.0,0.05320365]
[1646324667340,0.117289,42644.0,42642.0,0.0433]
[1646324667538,0.117289,42644.0,42640.0,0.05864]
[1646324668009,0.01171515,42643.0,42640.0,0.05864]
[1646324668309,0.117289,42644.0,42640.0,0.05864]
[1646324668310,0.117289,42644.0,42642.0,0.00990365]
[1646324668509,0.117289,42644.0,42643.0,0.00990365]
[1646324670515,0.058644,42645.0,42643.0,0.05320365]
[1646324670712,0.117259,42649.0,42644.0,0.00990365]
[1646324670911,0.058625,42648.0,42645.0,0.0433]
[1646324671313,0.117259,42649.0,42648.0,0.01520853]
[1646324671512,0.117259,42649.0,42648.0,0.05850853]
[1646324671951,0.05566062,42657.0,42651.0,0.15564799]
[1646324672151,0.01188458,42656.0,42652.0,0.0433]